bitfinex/quotes_ETHUSD_20240907
["timestamp","ask_amount","ask_price","bid_price","bid_amount"]
[1725679447341,0.24112785,2246.6,2246.4,5.94982197]
[1725679447643,2.2765,2246.7,2246.5,0.20002184]
[1725679447803,2.2765,2246.7,2246.6,0.20002184]
[1725679448442,7.863177,2246.9,2246.6,0.20002184]
[1725679448763,0.7863177,2246.8,2246.4,5.94982197]
[1725679449032,6.72708,2246.9,2246.5,0.19999275]
[1725679449201,6.72708,2246.9,2246.6,0.19999275]
[1725679449395,2.2765,2246.7,2246.4,5.94982197]
[1725679449632,2.2765,2246.7,2246.5,0.20000625]
[1725679449802,2.2765,2246.7,2246.6,0.20000935]
[1725679450003,2.2765,2246.7,2246.4,5.94982197]
[1725679450314,2.2765,2246.7,2246.5,0.20002103]
[1725679450521,2.2765,2246.7,2246.4,5.94982197]
[1725679450731,2.2765,2246.7,2246.5,4.65134675]
[1725679451030,2.2765,2246.7,2246.6,0.20000675]
[1725679454250,2.2765,2246.7,2246.6,0.20000803]
[1725679454453,2.51764155,2246.7,2246.6,0.20000803]
[1725679455065,2.51764155,2246.7,2246.4,5.94982197]
[1725679455225,2.51764155,2246.7,2246.5,0.20006581]
[1725679455569,2.51764155,2246.7,2246.4,5.94982197]
[1725679455570,2.51764155,2246.7,2246.6,0.20006581]
[1725679455932,2.51764155,2246.7,2246.4,5.94982197]
[1725679456232,2.51764155,2246.7,2246.5,0.20005802]
[1725679456480,4.45196,2246.2,2246.0,0.93013522]
[1725679456630,2.2765,2246.0,2245.8,0.93013522]
[1725679456979,6.72887,2246.0,2245.9,0.24034108]
[1725679457136,6.72887,2246.0,2245.6,6.88146719]
[1725679457137,0.24108675,2245.9,2245.6,1.49829197]
[1725679457527,0.24108675,2245.9,2245.7,0.03367744]
[1725679457867,0.24108675,2245.9,2245.6,1.49829197]
[1725679458038,0.24108675,2245.9,2245.7,0.03367744]
[1725679458240,4.45286,2245.8,2245.3,5.38386522]
[1725679458565,4.69206921,2245.8,2245.4,1.55141001]
[1725679458764,4.69206921,2245.8,2245.3,4.45373]
[1725679458953,4.69206921,2245.8,2245.4,1.64144134]
[1725679459126,4.69206921,2245.8,2245.4,0.08996522]
[1725679459331,5.9483893,2245.8,2245.4,0.08996522]
[1725679459885,4.45335,2245.5,2245.4,0.08996522]
[1725679460168,8.90719,2245.4,2244.8,13.43862747]
[1725679460344,6.73037,2245.3,2245.1,0.01597166]
[1725679460574,7.87266373,2245.3,2245.0,0.03143471]
[1725679460778,0.23901727,2245.2,2244.8,8.05388225]
[1725679460975,6.73037,2245.3,2244.9,0.01322064]
[1725679461206,0.23901727,2245.1,2244.9,0.06503294]
[1725679461379,6.73037,2245.3,2244.9,0.06503294]
[1725679461698,0.23901727,2245.0,2244.9,0.1373537]
[1725679461901,6.73037,2245.3,2244.8,8.05388225]
[1725679462067,0.23901727,2245.0,2244.9,0.14903171]
[1725679462386,6.73037,2245.3,2244.8,8.05388225]
[1725679462584,6.73037,2245.3,2244.9,0.00481939]
[1725679462785,3.394892,2245.3,2244.9,0.00985239]
[1725679462989,0.23787888,2245.2,2244.9,4.46436239]
[1725679463308,2.2765,2245.3,2244.9,4.52926831]
[1725679463772,0.23787888,2245.2,2244.9,4.52926831]
[1725679463970,2.2765,2245.3,2244.9,4.52926831]
[1725679464174,0.2378926,2245.1,2245.0,4.45433]
[1725679464405,11.1831,2245.6,2245.0,4.45433]
[1725679464701,0.23529034,2245.1,2245.0,8.05360225]
[1725679464910,5.57169,2245.5,2245.0,8.05360225]
[1725679465083,0.23529034,2245.1,2245.0,8.05360225]
[1725679465285,1.11831,2245.5,2245.1,4.45413]
[1725679466210,1.11831,2245.5,2245.0,3.59927225]
[1725679466211,5.57166,2245.5,2245.0,8.05360225]
[1725679468413,1.11831,2245.5,2245.1,4.45413]
[1725679469710,0.46622968,2245.4,2245.1,8.90818]
[1725679470003,0.46622968,2245.4,2245.1,8.90809]
[1725679470373,0.46622968,2245.4,2245.1,4.45404]
[1725679470971,0.46622968,2245.4,2245.2,8.05308225]
[1725679471173,0.46622968,2245.4,2245.3,8.90748]
[1725679472023,0.7006699,2245.4,2245.3,8.90748]
[1725679478271,0.7006699,2245.4,2245.2,4.45392]
[1725679479933,0.7006699,2245.4,2245.3,4.45374]
[1725679480348,0.7006699,2245.4,2245.3,8.90748]
[1725679480867,0.7006699,2245.4,2245.3,4.45374]
[1725679482475,0.7006699,2245.4,2245.1,4.45397]
[1725679482768,1.44296789,2245.4,2245.0,4.90102]
[1725679484052,1.44296789,2245.4,2245.1,1.50029077]
[1725679485478,0.7006699,2245.4,2245.1,5.95435077]
[1725679485779,0.46622968,2245.4,2245.1,5.95435077]
[1725679488278,0.23520836,2245.3,2245.1,5.95435077]
[1725679489378,0.23520836,2245.3,2245.2,0.20052867]
[1725679490184,0.23520836,2245.3,2245.2,15.40460112]
[1725679490185,0.00635184,2245.3,2245.2,15.40460112]
[1725679490386,2.2564,2246.4,2246.0,4.45226]
[1725679490698,0.21931412,2246.3,2246.0,4.45226]
[1725679491164,0.68500573,2246.3,2246.0,4.45226]
[1725679491376,0.68500573,2246.3,2246.0,8.90451]
[1725679491583,0.68500573,2246.3,2246.0,4.45225]
[1725679491947,0.68500573,2246.3,2246.0,8.90452]
[1725679492371,0.68500573,2246.3,2246.0,8.90451]
[1725679493382,0.68500573,2246.3,2246.2,8.90392]
[1725679493748,0.46569161,2246.3,2246.2,8.90392]
[1725679493977,0.46569161,2246.3,2246.2,12.7001246]
[1725679494413,0.46569161,2246.3,2246.2,12.50005984]
[1725679497410,0.68719135,2246.3,2246.2,12.50005984]
[1725679499826,0.46569161,2246.3,2246.2,12.50005984]
[1725679515901,0.46569161,2246.3,2246.2,13.35588]
[1725679516230,0.46569161,2246.3,2246.2,16.20016654]
[1725679518733,0.46569161,2246.3,2246.2,16.40023088]
[1725679518907,0.46569161,2246.3,2246.2,16.20016654]
[1725679519432,0.46569161,2246.3,2246.2,16.40023487]
[1725679520507,0.46569161,2246.3,2246.2,10.60237487]
[1725679522099,0.46569161,2246.3,2246.2,10.40230654]
[1725679522290,0.46569161,2246.3,2246.2,10.80899984]
[1725679522508,0.46569161,2246.3,2246.2,11.00908066]
[1725679522727,2.92669161,2246.3,2246.2,0.20008082]
[1725679522938,3.21936077,2246.3,2246.1,4.45213]
[1725679523430,0.20806869,2246.2,2246.1,4.45213]
[1725679523619,3.21936077,2246.3,2246.1,4.45213]
[1725679523620,2.92669161,2246.3,2246.1,4.45213]
[1725679523797,3.66449877,2246.3,2246.1,4.45213]
[1725679523997,0.20806869,2246.2,2246.1,4.45213]
[1725679524347,3.66449877,2246.3,2246.1,4.45213]
[1725679524634,0.20806869,2246.2,2246.1,4.45213]
[1725679524809,3.66449877,2246.3,2246.1,4.45213]
[1725679525006,0.46569161,2246.3,2246.2,10.40230654]
[1725679525325,0.46569161,2246.3,2246.2,10.60243756]
[1725679526107,0.46569161,2246.3,2246.2,10.40230654]
[1725679526431,0.46569161,2246.3,2246.2,10.60244614]
[1725679528544,0.46569161,2246.3,2246.2,10.40230654]
[1725679528743,0.46569161,2246.3,2246.2,10.60244679]
[1725679532006,0.46569161,2246.3,2246.2,10.60244519]
[1725679535256,0.46569161,2246.3,2246.2,14.27942225]
[1725679535443,0.46569161,2246.3,2246.2,14.47953143]
[1725679536056,0.46569161,2246.3,2246.2,18.93149143]
[1725679536263,0.46569161,2246.3,2246.2,20.26834183]
[1725679536477,0.46569161,2246.3,2246.2,23.83490271]
[1725679537094,0.46569161,2246.3,2246.2,24.28160271]
[1725679537805,2.2726,2247.4,2246.2,30.00397226]
[1725679538100,0.20782027,2247.3,2247.0,4.45028]
[1725679538964,2.2726,2247.2,2247.0,4.45028]
[1725679539514,0.20782027,2247.1,2247.0,4.45028]
[1725679546636,0.20666322,2247.1,2247.0,4.45028]
[1725679550035,0.20666322,2247.1,2246.9,5.94895654]
[1725679550243,0.20666322,2247.1,2246.9,10.39943654]
[1725679550412,0.20666322,2247.1,2246.9,10.39933654]
[1725679551064,0.20666322,2247.1,2247.0,4.45037]
[1725679553247,2.3547,2247.4,2247.0,4.45037]
[1725679553445,0.20871997,2247.1,2247.0,4.45037]
[1725679553646,1.82863615,2247.3,2247.0,4.45037]
[1725679553647,0.46625398,2247.3,2247.0,4.45037]
[1725679553864,0.20871997,2247.1,2247.0,4.45037]
[1725679554031,0.46625398,2247.3,2247.0,4.45037]
[1725679554231,0.20871997,2247.2,2247.0,4.45037]
[1725679554432,0.46625398,2247.3,2247.0,4.45037]
[1725679554648,0.20871997,2247.2,2247.0,4.45037]
[1725679555050,0.46625398,2247.3,2247.0,4.45037]
[1725679555291,0.20871997,2247.1,2247.0,4.45037]
[1725679555589,0.46625398,2247.3,2247.0,4.45037]
[1725679555756,0.20871997,2247.1,2247.0,4.45037]
[1725679556289,0.46625398,2247.3,2247.0,4.45037]
[1725679556490,0.20871997,2247.1,2247.0,4.45037]
[1725679556649,0.46625398,2247.3,2247.0,4.45037]
[1725679556847,0.20871997,2247.1,2247.0,4.45037]
[1725679557184,0.46625398,2247.3,2247.0,4.45037]
[1725679557353,0.20871997,2247.1,2247.0,4.45037]
[1725679557553,0.46625398,2247.3,2247.0,4.45037]
[1725679557754,0.20871997,2247.1,2247.0,4.45037]
[1725679558053,0.46625398,2247.3,2246.9,5.94885654]
[1725679558054,0.46625398,2247.3,2247.2,4.44998]
[1725679558366,2.3547,2247.4,2247.3,4.44978]
[1725679559853,2.3547,2247.4,2247.2,5.94835654]
[1725679560548,2.3547,2247.4,2247.2,1.49838654]
[1725679560751,3.08171315,2247.4,2247.1,4.45015]
[1725679561161,0.21023752,2247.3,2247.1,4.45015]
[1725679561871,0.21023752,2247.3,2247.0,5.94857654]
[1725679562455,0.21023752,2247.3,2247.0,10.39885654]
[1725679563052,0.21023752,2247.3,2247.1,4.45016]
[1725679565265,0.98437259,2247.3,2247.0,5.94857654]
[1725679565467,2.3547,2247.2,2247.0,10.39884654]
[1725679565832,2.3547,2247.2,2247.1,4.45018]
[1725679566988,2.3706,2247.4,2247.1,4.45018]
[1725679569257,3.497518,2247.4,2247.1,4.45018]
[1725679570084,19.17309098,2247.7,2247.4,4.44951]
[1725679570279,19.17309098,2247.7,2247.5,4.44937]
[1725679570821,19.17309098,2247.7,2247.4,4.44956]
[1725679572323,19.17309098,2247.7,2247.3,4.44977]
[1725679572324,19.17309098,2247.7,2247.3,4.44969]
[1725679572526,19.17309098,2247.7,2247.3,4.44965]
[1725679572820,21.69867045,2247.7,2247.3,4.44965]
[1725679573125,2.3706,2247.6,2247.3,4.44965]
[1725679573420,2.3706,2247.6,2247.3,8.89934]
[1725679575195,2.3706,2247.6,2247.4,4.44958]
[1725679576122,0.21062365,2247.5,2247.4,4.44958]
[1725679576617,0.21062365,2247.5,2247.0,11.91037]
[1725679576618,2.3706,2247.4,2247.0,13.40861654]
[1725679576819,2.3706,2247.4,2247.0,5.94861654]
[1725679576986,0.21067881,2247.3,2247.0,5.94861654]
[1725679578198,6.03226268,2247.3,2246.9,4.45056]
[1725679578394,2.3706,2247.2,2246.9,4.45056]
[1725679578923,0.21047196,2247.1,2246.9,4.45056]
[1725679579426,0.21047196,2247.1,2247.0,5.94875654]
[1725679579787,0.21047196,2247.1,2247.0,10.39912654]
[1725679580086,0.21036163,2247.1,2247.0,10.39912654]
[1725679580523,2.3706,2247.4,2247.1,4.45006]
[1725679580857,3.05259,2247.4,2247.1,4.45006]
[1725679581017,2.3706,2247.3,2246.7,0.93169824]
[1725679581239,0.68199,2247.4,2246.6,9.30434736]
[1725679581240,2.3706,2246.7,2246.6,7.46]
[1725679581389,4.45127,2246.6,2246.1,2.43008478]
[1725679581728,2.3706,2246.4,2246.0,4.45219]
[1725679581927,2.3706,2246.4,2246.1,1.75109395]
[1725679582130,2.3706,2246.4,2246.0,4.45219]
[1725679584688,2.3706,2246.4,2246.0,8.90443]
[1725679585041,2.3706,2246.4,2246.0,4.45219]
[1725679585196,2.3706,2246.4,2246.0,8.90446]
[1725679585620,2.3706,2246.4,2246.0,8.90444]
[1725679585833,2.3706,2246.4,2246.0,4.45219]
[1725679586229,2.3706,2246.4,2246.0,8.90444]
[1725679586605,2.3706,2246.4,2246.0,4.45219]
[1725679588037,4.45146,2246.5,2246.0,8.90444]
[1725679588206,4.45146,2246.5,2246.0,4.45219]
[1725679588404,0.2077541,2246.4,2246.0,4.45219]
[1725679588730,4.45146,2246.5,2246.0,4.45219]
[1725679588927,0.2077541,2246.3,2246.0,4.45219]
[1725679589089,4.45146,2246.5,2246.0,4.45219]
[1725679589292,0.2077541,2246.4,2246.0,4.45219]
[1725679589497,4.45146,2246.5,2246.0,4.45219]
[1725679589695,0.2077541,2246.3,2246.0,4.45219]
[1725679589920,10.035317,2246.5,2246.0,4.45219]
[1725679590113,0.2077541,2246.2,2246.0,4.45219]
[1725679590324,5.583837,2246.5,2246.0,4.45219]
[1725679590541,0.2077541,2246.1,2246.0,4.45219]
[1725679590843,10.035297,2246.5,2246.0,4.45219]
[1725679590844,2.4212,2246.4,2246.0,4.45219]
[1725679591532,0.2077541,2246.3,2246.0,4.45219]
[1725679591705,2.4212,2246.6,2246.2,4.45187]
[1725679592128,2.4212,2246.8,2246.3,4.45173]
[1725679592449,4.45067,2246.9,2246.5,4.45135]
[1725679594247,0.46645111,2246.8,2246.5,4.45135]
[1725679594926,0.46645111,2246.8,2246.7,4.45097]
[1725679595127,4.45018,2247.1,2246.6,4.45106]
[1725679595311,4.91660431,2247.1,2246.6,4.45106]
[1725679595512,9.36692431,2247.1,2246.6,4.45106]
[1725679595746,0.46642431,2247.1,2246.4,8.04925811]
[1725679595924,0.46642431,2247.1,2246.2,8.04966811]
[1725679595925,2.4212,2247.0,2246.2,8.04966811]
[1725679596122,0.27803071,2246.9,2246.2,8.04966811]
[1725679596928,4.45097,2246.7,2246.2,12.50146811]
[1725679597513,4.4515,2246.5,2246.0,16.36444]
[1725679597717,4.4515,2246.5,2246.0,8.90444]
[1725679598219,0.20851312,2246.4,2246.0,8.90446]
[1725679598566,0.20851312,2246.4,2246.1,4.45212]
[1725679599664,0.20851312,2246.4,2246.0,8.90443]
[1725679601461,0.20851312,2246.4,2246.1,4.45203]
[1725679601866,6.87239,2246.6,2246.1,4.45203]
[1725679602066,0.2082095,2246.3,2246.1,4.45203]
[1725679602271,8.004741,2246.6,2246.1,4.45203]
[1725679602931,0.2082095,2246.5,2246.1,4.45203]
[1725679605132,4.6596195,2246.5,2246.0,4.4522]
[1725679605468,5.92605555,2246.5,2246.0,4.4522]
[1725679607175,5.92605555,2246.5,2246.0,8.90447]
[1725679607569,4.6596195,2246.5,2246.0,8.90447]
[1725679609063,4.6596195,2246.5,2246.1,4.45215]
[1725679610158,0.2082095,2246.5,2246.1,4.45215]
[1725679614853,4.6596995,2246.5,2246.0,4.45234]
[1725679615055,4.45157,2246.4,2246.0,4.45234]
[1725679615481,0.20767126,2246.3,2246.0,4.4522]
[1725679615683,0.20767126,2246.3,2246.0,8.90444]
[1725679615887,4.45137,2246.5,2246.0,8.90444]
[1725679616077,0.20761605,2246.2,2246.0,8.90444]
[1725679616299,5.583738,2246.5,2246.0,8.90444]
[1725679616608,0.20761605,2246.4,2246.1,4.45213]
[1725679619306,0.20761605,2246.4,2246.2,4.4519]
[1725679619600,6.87238,2246.6,2246.2,4.4519]
[1725679619804,0.20758845,2246.3,2246.2,4.4519]
[1725679619976,6.87238,2246.6,2246.2,4.4519]
[1725679620162,0.20758845,2246.3,2246.2,4.4519]
[1725679620365,6.87238,2246.6,2246.2,4.4519]
[1725679620692,0.20758845,2246.3,2246.2,4.4519]
[1725679620899,6.87238,2246.6,2246.2,4.4519]
[1725679621067,0.20758845,2246.3,2246.2,4.4519]
[1725679621266,0.20758845,2246.3,2246.1,5.79803]
[1725679621267,6.87247,2246.6,2246.1,4.45213]
[1725679621497,0.20758845,2246.3,2246.1,8.90418]
[1725679621688,6.87247,2246.6,2246.1,8.90418]
[1725679621884,0.20758845,2246.2,2246.1,4.45205]
[1725679622186,6.87247,2246.6,2246.1,4.45205]
[1725679622392,1.132355,2246.5,2246.1,4.45205]
[1725679622698,1.33994345,2246.5,2246.1,4.45205]
[1725679623300,5.79133345,2246.5,2246.1,4.45205]
[1725679624066,5.583745,2246.5,2246.1,4.45205]
[1725679624375,5.583745,2246.5,2246.0,4.45231]
[1725679624376,6.82899,2246.4,2246.0,4.45231]
[1725679624576,7.03661986,2246.4,2246.0,4.45231]
[1725679626104,7.03661986,2246.4,2246.1,0.20027772]
[1725679626403,7.03661986,2246.4,2246.0,8.90457]
[1725679626404,2.58492986,2246.4,2246.0,8.90457]
[1725679626574,2.58492986,2246.4,2246.1,3.8775236]
[1725679626769,2.3773,2246.4,2246.1,4.45214]
[1725679628769,2.4354,2246.6,2246.2,4.45195]
[1725679628969,0.20756084,2246.3,2246.2,4.45195]
[1725679629205,2.4354,2246.6,2246.2,4.45195]
[1725679629466,0.20756084,2246.3,2246.2,4.45195]
[1725679629763,0.20757465,2246.3,2246.2,4.45195]
[1725679629962,2.4354,2246.6,2246.2,4.45195]
[1725679630192,0.20757465,2246.3,2246.2,4.45195]
[1725679630396,2.4354,2246.6,2246.2,4.45195]
[1725679630668,0.20757465,2246.3,2246.2,4.45195]
[1725679630867,4.45107,2246.7,2246.2,4.45195]
[1725679631072,5.61259307,2246.7,2246.2,4.45195]
[1725679631405,4.65874465,2246.6,2246.1,7.29710462]
[1725679631903,4.65874465,2246.6,2246.1,5.95120462]
[1725679633307,4.65874465,2246.6,2246.1,10.40323462]
[1725679633476,4.65874465,2246.6,2246.1,10.40314462]
[1725679633878,0.20757465,2246.6,2246.2,4.45195]
[1725679634083,0.20757465,2246.6,2246.3,4.45164]
[1725679634282,0.20757465,2246.6,2246.3,7.29665462]
[1725679634593,0.20774027,2246.5,2246.4,8.32832414]
[1725679634781,6.88585,2247.0,2246.4,8.32832414]
[1725679634782,6.88585,2247.0,2246.4,8.3283432]
[1725679634978,0.20774027,2246.5,2246.4,4.45136]
[1725679635183,6.88585,2247.0,2246.4,6.00214596]
[1725679635369,0.20774027,2246.5,2246.4,4.45136]
[1725679635565,4.45058,2246.9,2246.4,4.45136]
[1725679635809,0.20774027,2246.5,2246.4,4.45136]
[1725679636007,4.45058,2246.9,2246.4,4.45136]
[1725679636211,0.20774027,2246.5,2246.4,4.45136]
[1725679636369,4.45058,2246.9,2246.4,4.45136]
[1725679636568,0.20774027,2246.5,2246.4,4.45136]
[1725679636768,4.45058,2246.9,2246.4,4.45136]
[1725679637006,0.20774027,2246.5,2246.4,4.45136]
[1725679637207,6.88585,2247.0,2246.4,6.00215977]
[1725679637507,0.20774027,2246.5,2246.4,4.45136]
[1725679637822,2.4354,2247.0,2246.6,4.45108]
[1725679637978,2.4354,2247.0,2246.7,4.45085]
[1725679638316,4.91656837,2247.2,2246.7,5.94991462]
[1725679638317,6.88544,2247.2,2246.7,5.94991462]
[1725679638603,0.49165684,2247.1,2246.7,4.45085]
[1725679639406,2.4354,2246.9,2246.5,5.95028462]
[1725679639715,2.4354,2246.9,2246.2,12.84354824]
[1725679639716,4.45109,2246.7,2246.2,12.84354824]
[1725679640011,4.45109,2246.7,2246.3,1.55090551]
[1725679640209,4.45109,2246.7,2246.2,13.41091462]
[1725679640379,4.45109,2246.7,2246.3,1.55089579]
[1725679640579,4.45083,2246.8,2246.3,4.45176]
[1725679640874,6.88601,2246.9,2246.4,4.45141]
[1725679642091,6.88601,2246.9,2246.4,5.79731]
[1725679642270,6.88601,2246.9,2246.4,4.45141]
[1725679642474,6.88601,2246.9,2246.3,4.45176]
[1725679642475,4.45081,2246.8,2246.3,4.45176]
[1725679642783,2.4354,2246.6,2246.2,14.34261286]
[1725679642982,6.88621,2246.8,2246.3,6.00259748]
[1725679643198,0.20774027,2246.5,2246.3,4.45173]
[1725679643508,6.88621,2246.8,2246.3,4.45173]
[1725679643681,0.20774027,2246.4,2246.3,4.45173]
[1725679644016,6.88621,2246.8,2246.3,6.00259966]
[1725679644175,0.20774027,2246.4,2246.3,4.45173]
[1725679644382,8.019885,2246.8,2246.3,6.00262036]
[1725679644383,12.470765,2246.8,2246.3,6.00262036]
[1725679644579,0.20774027,2246.4,2246.3,4.45173]
[1725679644781,12.470745,2246.8,2246.3,6.00260298]
[1725679645006,0.20774027,2246.4,2246.3,4.45173]
[1725679645220,12.470745,2246.8,2246.3,6.0025983]
[1725679645513,0.20774027,2246.4,2246.3,4.45173]
[1725679645815,0.20774027,2246.4,2246.3,8.3288595]
[1725679645976,12.470765,2246.8,2246.3,8.3288595]
[1725679646314,0.20774027,2246.4,2246.3,4.45173]
[1725679646518,11.33709,2246.8,2246.3,8.32884185]
[1725679646718,0.20774027,2246.4,2246.3,4.45173]
[1725679647020,0.20774027,2246.4,2246.1,4.89894]
[1725679647182,6.76348,2246.6,2246.1,4.89894]
[1725679647380,0.20819572,2246.3,2246.1,4.89894]
[1725679647580,6.76348,2246.6,2246.1,4.89894]
[1725679648018,4.45138,2246.5,2246.1,4.89894]
[1725679648778,6.76348,2246.6,2246.1,4.89894]
[1725679650327,11.21474,2246.6,2246.1,4.89894]
[1725679650620,0.20803011,2246.5,2246.1,4.89894]
[1725679651396,11.21474,2246.6,2246.1,4.89894]
[1725679651609,12.336214,2246.6,2246.1,4.89894]
[1725679651785,0.20803011,2246.5,2246.1,4.89894]
[1725679652212,4.65951011,2246.5,2246.1,0.4468]
[1725679652413,4.45165,2246.4,2246.1,0.4468]
[1725679652741,4.45165,2246.4,2246.0,0.4468]
[1725679652942,0.65307089,2246.3,2246.0,0.4468]
[1725679653143,0.65307089,2246.3,2245.9,4.45245]
[1725679653727,5.10489089,2246.3,2245.9,4.45245]
[1725679655202,5.10489089,2246.3,2246.0,1.55109756]
[1725679655402,5.10489089,2246.3,2245.9,4.45245]
[1725679655631,0.65307089,2246.3,2246.0,1.55109182]
[1725679655967,0.65307089,2246.3,2245.9,4.45245]
[1725679656134,0.20790589,2246.3,2246.0,1.55109054]
[1725679656338,0.20790589,2246.3,2245.9,4.45245]
[1725679656518,0.20790589,2246.3,2246.0,1.55108146]
[1725679656721,0.20790589,2246.3,2245.9,4.45245]
[1725679657037,0.20790589,2246.3,2246.0,1.55108083]
[1725679657223,0.20790589,2246.3,2245.9,4.45245]
[1725679657407,0.20790589,2246.3,2246.0,1.55108253]
[1725679657601,0.20790589,2246.3,2245.9,4.45245]
[1725679657804,0.20790589,2246.3,2246.0,1.55108046]
[1725679658047,0.20790589,2246.3,2245.9,4.45245]
[1725679658347,4.65970589,2246.3,2246.0,1.55108366]
[1725679658516,4.65970589,2246.3,2245.9,4.45245]
[1725679658717,4.65970589,2246.3,2246.0,1.55108823]
[1725679658913,4.65970589,2246.3,2245.9,4.45245]
[1725679659149,4.65970589,2246.3,2246.0,1.55109098]
[1725679659323,4.65970589,2246.3,2245.9,4.45245]
[1725679659505,4.65970589,2246.3,2246.0,1.55108492]
[1725679659708,4.65970589,2246.3,2245.9,4.45245]
[1725679660047,4.65970589,2246.3,2246.0,1.55109038]
[1725679660230,4.65970589,2246.3,2245.9,4.45245]
[1725679660422,4.65970589,2246.3,2246.0,1.55108526]
[1725679660617,4.65970589,2246.3,2245.9,4.45245]
[1725679660952,4.65970589,2246.3,2246.0,1.55109033]
[1725679661145,4.65970589,2246.3,2245.9,4.45245]
[1725679661620,4.65970589,2246.3,2246.0,1.55109098]
[1725679661827,4.65970589,2246.3,2245.9,4.45245]
[1725679662049,4.65970589,2246.3,2246.0,1.55108853]
[1725679662235,4.65970589,2246.3,2245.9,4.45245]
[1725679662544,4.65970589,2246.3,2246.0,1.55108844]
[1725679662723,4.65970589,2246.3,2245.9,4.45245]
[1725679662919,4.65970589,2246.3,2246.0,1.55109028]
[1725679663150,4.65970589,2246.3,2245.9,4.45245]
[1725679663311,4.65970589,2246.3,2246.0,1.55108804]
[1725679663514,0.20790589,2246.3,2245.9,4.45245]
[1725679663906,0.20790589,2246.3,2246.0,1.55108823]
[1725679664111,0.20790589,2246.3,2245.9,4.45245]
[1725679665137,4.65968589,2246.3,2246.0,1.55108675]
[1725679665341,4.65968589,2246.3,2245.9,4.45245]
[1725679666351,0.20790589,2246.3,2245.8,3.86571187]
[1725679666514,0.20790589,2246.3,2246.1,4.45199]
[1725679666715,6.76356,2246.6,2246.1,4.45199]
[1725679666917,0.20732617,2246.2,2246.1,4.45199]
[1725679667117,6.76356,2246.6,2246.1,4.45199]
[1725679667324,0.20732617,2246.2,2246.1,4.45199]
[1725679667520,6.76356,2246.6,2246.1,4.45199]
[1725679667853,0.20732617,2246.5,2246.1,4.45199]
[1725679668062,4.65870617,2246.5,2246.1,4.45199]
[1725679668626,0.20732617,2246.5,2246.1,4.45199]
[1725679669627,4.65869617,2246.5,2246.1,4.45199]
[1725679669925,5.80092179,2246.5,2246.1,4.45199]
[1725679678273,4.4517,2246.4,2245.9,4.45243]
[1725679678580,6.78932,2246.3,2245.9,4.45243]
[1725679678930,0.20740902,2246.2,2245.9,4.45243]
[1725679679237,6.78932,2246.3,2245.9,8.90489]
[1725679679427,0.20740902,2246.1,2245.9,4.45243]
[1725679679627,6.78932,2246.3,2245.9,4.45243]
[1725679679834,0.20740902,2246.0,2245.9,4.45243]
[1725679680134,6.78932,2246.3,2245.9,8.33013717]
[1725679680475,6.78932,2246.3,2245.9,4.45243]
[1725679680626,0.20740902,2246.2,2245.9,4.45243]
[1725679680833,6.78932,2246.3,2245.9,4.45243]
[1725679681032,0.20720193,2246.1,2245.9,4.45243]
[1725679681355,6.78932,2246.3,2245.9,4.45243]
[1725679681545,0.20720193,2246.0,2245.9,4.45243]
[1725679681878,0.20720193,2246.0,2245.9,8.73706224]
[1725679682167,2.3375,2246.3,2246.0,4.45235]
[1725679682405,4.45119,2246.6,2246.2,4.45192]
[1725679684877,4.4506,2246.9,2246.5,4.45129]
[1725679691520,7.89962416,2247.0,2246.5,4.45129]
[1725679692092,5.56212416,2247.0,2246.5,4.45122]
[1725679692280,5.56212416,2247.0,2246.6,4.45114]
[1725679692880,0.60286401,2246.9,2246.6,4.45114]
[1725679696047,1.0693147,2246.9,2246.6,4.45114]
[1725679696197,0.20796109,2246.8,2246.7,4.45097]
[1725679699253,0.20796109,2246.8,2246.6,4.45107]
[1725679706269,0.20796109,2246.8,2246.7,4.45097]
[1725679710834,0.20796109,2246.8,2246.6,4.45114]
[1725679718789,0.20796109,2246.8,2246.7,4.45097]
[1725679720980,0.20796109,2246.8,2246.7,5.79687]
[1725679721200,0.20796109,2246.8,2246.7,4.45097]
[1725679733483,0.20796109,2246.8,2246.7,14.78782768]
[1725679733666,21.25161098,2247.7,2247.1,5.79599]
[1725679733667,4.44923,2247.6,2247.1,5.79599]
[1725679733873,0.46637725,2247.3,2247.1,5.79599]
[1725679734909,0.46637725,2247.3,2247.2,4.44998]
[1725679735486,23.62399098,2247.7,2247.3,4.44976]
[1725679735688,23.62399098,2247.7,2247.3,4.44962]
[1725679735689,19.17499098,2247.7,2247.3,4.44962]
[1725679736071,19.17499098,2247.7,2247.4,4.44956]
[1725679740773,19.17499098,2247.7,2247.3,4.44962]
[1725679741212,0.21073398,2247.6,2247.3,4.44962]
[1725679741716,0.21073398,2247.6,2247.3,8.8993]
[1725679742512,0.21073398,2247.6,2247.3,4.44962]
[1725679743088,3.03907748,2247.6,2247.3,4.44962]
[1725679743395,2.3725,2247.5,2247.2,4.44995]
[1725679744021,0.21073398,2247.4,2247.2,4.44995]
[1725679747312,0.21073398,2247.4,2247.3,4.44978]
[1725679747615,21.25149098,2247.7,2247.3,4.44978]
[1725679747919,19.65078038,2247.7,2247.4,4.44954]
[1725679748079,0.21067882,2247.6,2247.4,4.44954]
[1725679749419,0.21067882,2247.6,2247.2,4.44996]
[1725679749420,2.3063,2247.5,2247.2,4.44996]
[1725679749584,2.3063,2247.5,2247.1,5.94922462]
[1725679749917,0.21092703,2247.4,2247.2,4.44993]
[1725679751143,0.67724088,2247.4,2247.2,4.44993]
[1725679752092,0.67724088,2247.4,2247.1,5.94921462]
[1725679753099,0.67724088,2247.4,2247.1,10.39929462]
[1725679754125,0.67724088,2247.4,2247.1,5.94914462]
[1725679754628,0.67724088,2247.4,2247.0,8.90061]
[1725679754824,1.42053397,2247.4,2247.0,4.45025]
[1725679755512,0.67724088,2247.4,2247.0,4.45025]
[1725679755725,0.67724088,2247.4,2247.0,8.90054]
[1725679755910,0.67724088,2247.4,2247.1,1.49906462]
[1725679756117,0.67724088,2247.4,2247.1,5.94917462]
[1725679757918,2.3063,2247.3,2247.1,5.94917462]
[1725679758360,0.21092703,2247.2,2247.1,1.49906462]
[1725679758654,0.21092703,2247.2,2247.1,5.94924462]
[1725679758865,0.46631385,2247.4,2247.1,5.94924462]
[1725679759029,0.21092703,2247.2,2247.1,5.94924462]